bitfinex-derivatives/quotes_ETHF0:USTF0_20250520
["timestamp","ask_amount","ask_price","bid_price","bid_amount"]
[1747742228159,4.00386,2511.5,2511.4,1.62655201]
[1747742228556,4.00386,2511.5,2511.4,2.42262201]
[1747742230057,4.00386,2511.5,2511.4,1.62655201]
[1747742230250,5.99474,2511.5,2511.4,0.32785201]
[1747742230650,7.35074,2511.5,2511.4,0.32785201]
[1747742231358,4.14294,2511.5,2511.4,0.32785201]
[1747742231754,4.14294,2511.5,2511.4,1.12392201]
[1747742231952,4.14294,2511.5,2511.4,0.32785201]
[1747742232153,4.14294,2511.5,2511.4,1.12392201]
[1747742232447,4.14294,2511.5,2511.4,0.32785201]
[1747742232860,4.14294,2511.5,2511.4,1.12392201]
[1747742233061,4.14294,2511.5,2511.4,0.32785201]
[1747742233359,4.14294,2511.5,2511.4,0.62439407]
[1747742233661,4.14294,2511.5,2511.4,0.942879]
[1747742233862,7.35074,2511.5,2511.4,0.942879]
[1747742234654,7.35074,2511.5,2511.4,0.94288596]
[1747742235155,7.35074,2511.5,2511.4,0.94295098]
[1747742236761,7.35074,2511.5,2511.4,0.61509897]
[1747742238765,4.14294,2511.5,2511.4,0.61509897]
[1747742238961,4.14294,2511.5,2511.4,1.41116897]
[1747742239563,4.14294,2511.5,2511.4,1.41119757]
[1747742239766,2.15206,2511.5,2511.4,3.40207757]
[1747742239961,0.79606,2511.5,2511.4,3.40207757]
[1747742240157,0.79606,2511.5,2511.4,6.31357757]
[1747742241267,0.79606,2511.5,2511.4,6.64145377]
[1747742242371,0.80198967,2511.6,2511.5,0.79603]
[1747742242562,0.80198967,2511.6,2511.5,2.39679683]
[1747742242859,2.79278968,2511.6,2511.5,2.39679683]
[1747742243166,2.79278968,2511.6,2511.5,2.71528176]
[1747742243362,0.80198967,2511.6,2511.5,4.70608176]
[1747742243565,0.80198967,2511.6,2511.5,12.71308176]
[1747742244371,0.54324179,2511.6,2511.5,13.04093377]
[1747742245871,0.00596967,2511.8,2511.7,0.79597]
[1747742246068,1.32933404,2512.0,2511.9,0.79591]
[1747742246266,1.32933404,2512.0,2511.9,12.30737683]
[1747742246569,1.32933404,2512.0,2511.9,14.29786183]
[1747742246875,1.32933404,2512.0,2511.9,15.55496183]
[1747742247073,1.32933404,2512.0,2511.9,20.55496183]
[1747742247375,1.32933404,2512.0,2511.9,23.61344676]
[1747742248072,1.32933404,2512.0,2511.9,23.61286675]
[1747742248477,0.14678967,2512.2,2512.1,0.79584]
[1747742248677,0.14678967,2512.2,2512.1,1.09192682]
[1747742248867,0.14678967,2512.2,2512.1,3.08225182]
[1747742249172,0.14678967,2512.2,2512.1,3.72803178]
[1747742249364,0.14678967,2512.2,2512.1,4.55823178]
[1747742249567,0.14678967,2512.2,2512.1,5.81533178]
[1747742250278,0.14678967,2512.2,2512.1,10.81533178]
[1747742250575,0.14678967,2512.2,2512.1,5.81533178]
[1747742250776,0.14678967,2512.2,2512.1,5.48803675]
[1747742251077,0.14678967,2512.2,2512.1,5.48747287]
[1747742251477,0.14678967,2512.2,2512.1,5.4873236]
[1747742252684,0.14678967,2512.2,2512.1,10.4873236]
[1747742253174,0.14678967,2512.2,2512.1,10.48718061]
[1747742253875,0.79567,2512.7,2512.6,0.79568]
[1747742254072,3.2078,2512.9,2512.8,0.79562]
[1747742254275,4.00341,2512.9,2512.8,1.09071785]
[1747742254476,3.2078,2512.9,2512.8,3.08049284]
[1747742254871,3.2078,2512.9,2512.8,4.37329284]
[1747742255376,4.00339,2512.9,2512.8,4.37329284]
[1747742255879,4.00339,2512.9,2512.8,4.69177777]
[1747742256277,4.00339,2512.9,2512.8,3.89615777]
[1747742256576,2.785365,2512.9,2512.8,8.61721731]
[1747742256776,5.993165,2512.9,2512.8,8.61721731]
[1747742256973,2.785365,2512.9,2512.8,8.61721731]
[1747742257170,2.785365,2512.9,2512.8,8.29873238]
[1747742260081,2.785365,2512.9,2512.8,8.29858475]
[1747742260284,2.785365,2512.9,2512.8,9.09420475]
[1747742260981,2.785365,2512.9,2512.8,9.91700475]
[1747742261182,2.785365,2512.9,2512.8,1.91300475]
[1747742261582,2.785365,2512.9,2512.8,1.91292249]
[1747742263080,0.00596967,2513.1,2513.0,0.79556]
[1747742263277,0.00596967,2513.1,2513.0,4.29770569]
[1747742263576,0.00596967,2513.1,2513.0,6.28732069]
[1747742263783,4.53713404,2514.0,2513.4,1.98854]
[1747742263989,0.79534,2513.8,2513.7,0.79531]
[1747742264283,0.79534,2513.8,2513.7,0.29418148]
[1747742264477,2.7844,2513.8,2513.7,0.29418148]
[1747742264981,2.7844,2513.8,2513.7,1.08935527]
[1747742265575,1.2826,2513.9,2513.8,0.79531]
[1747742265780,0.00596967,2514.0,2513.9,0.79527]
[1747742265977,0.00596967,2514.0,2513.9,11.08018527]
[1747742266187,0.00596967,2514.0,2513.9,12.47418527]
[1747742266382,0.00596967,2514.0,2513.9,4.47218527]
[1747742266576,0.00596967,2514.0,2513.9,12.4737454]
[1747742267285,0.00596967,2514.0,2513.9,12.79183951]
[1747742267674,1.98735,2515.0,2514.0,1.98811]
[1747742267977,0.79512,2514.4,2514.3,4.00293]
[1747742268171,0.79512,2514.4,2514.3,4.2965054]
[1747742268382,0.79512,2514.4,2514.3,6.2850904]
[1747742269982,1.38096477,2514.5,2514.4,0.79512]
[1747742270177,1.38096477,2514.5,2514.4,2.4060954]
[1747742270484,1.38096477,2514.5,2514.4,4.3946004]
[1747742270887,1.38096477,2514.5,2514.4,3.1553954]
[1747742271182,0.08486477,2514.5,2514.4,3.1553954]
[1747742271888,0.08486477,2514.5,2514.4,5.1439004]
[1747742273387,0.08486477,2514.5,2514.4,5.14305267]
[1747742275087,0.08486477,2514.5,2514.4,5.14321918]
[1747742275979,0.08486477,2514.5,2514.4,10.14321918]
[1747742276480,0.0039798,2514.6,2514.5,0.79508]
[1747742276687,0.0039798,2514.6,2514.5,10.46537418]
[1747742276886,0.0039798,2514.6,2514.5,12.45379918]
[1747742277990,0.0039798,2514.6,2514.5,12.77189329]
[1747742278391,0.0039798,2514.6,2514.5,12.47899911]
[1747742278583,0.0039798,2514.6,2514.5,12.77180582]
[1747742279091,0.7990298,2514.6,2514.5,12.77080582]
[1747742279686,0.7990298,2514.6,2514.5,11.37740582]
[1747742280083,0.7990298,2514.6,2514.5,11.37751407]
[1747742281087,0.7990298,2514.6,2514.5,11.05941996]
[1747742281284,2.0794298,2514.6,2514.5,11.05941996]
[1747742281785,2.0794298,2514.6,2514.5,10.766505]
[1747742281991,2.0794298,2514.6,2514.5,11.05949228]
[1747742282291,2.0794298,2514.6,2514.5,8.27598728]
[1747742283381,2.0794298,2514.6,2514.5,9.07106728]
[1747742283588,2.0794298,2514.6,2514.5,9.38928231]
[1747742284294,2.0794298,2514.6,2514.5,11.37770731]
[1747742284892,2.16429457,2514.6,2514.5,11.37770731]
[1747742285294,2.16429457,2514.6,2514.5,11.37777124]
[1747742286694,0.88389457,2514.6,2514.5,11.37777124]
[1747742286896,0.88389457,2514.6,2514.5,11.37795271]
[1747742287097,0.08884457,2514.6,2514.5,9.38952771]
[1747742287395,0.08884457,2514.6,2514.5,11.37795271]
[1747742287790,0.88389457,2514.6,2514.5,11.37795271]
[1747742288296,0.88389457,2514.6,2514.5,11.62112719]
[1747742289300,0.4068174,2514.6,2514.5,11.62112719]
[1747742290200,0.49168217,2514.6,2514.5,11.62112719]
[1747742290496,0.49168217,2514.6,2514.5,12.89337829]
[1747742291189,0.49168217,2514.6,2514.5,12.9764235]
[1747742291595,0.08486477,2514.6,2514.5,12.9764235]
[1747742291796,0.87991477,2514.6,2514.5,12.9764235]
[1747742292584,0.49230294,2514.6,2514.5,13.13965174]
[1747742293495,0.79504,2514.7,2514.6,0.79505]
[1747742293698,0.79504,2514.7,2514.6,6.4712851]
[1747742293898,0.79504,2514.7,2514.6,9.1929351]
[1747742295399,0.79504,2514.7,2514.6,8.71595223]
[1747742296401,0.79504,2514.7,2514.6,3.82100223]
[1747742296596,2.78339,2514.7,2514.6,11.80300223]
[1747742296797,3.53499,2514.7,2514.6,11.80300223]
[1747742297300,3.53499,2514.7,2514.6,11.80370951]
[1747742299405,2.73995,2514.7,2514.6,11.80370951]
[1747742299904,3.53499,2514.7,2514.6,11.80370951]
[1747742300506,3.53499,2514.7,2514.6,11.80382153]
[1747742301005,3.53499,2514.7,2514.6,12.59887153]
[1747742301394,3.53499,2514.7,2514.6,12.58587153]
[1747742301601,2.78339,2514.7,2514.6,12.58587153]
[1747742302206,1.2797,2514.8,2514.7,0.79502]
[1747742302506,1.68710139,2514.8,2514.7,2.47574047]
[1747742302706,1.68710139,2514.8,2514.7,5.22321047]
[1747742303802,1.68710139,2514.8,2514.7,5.54125392]
[1747742304405,3.67537139,2514.8,2514.7,10.72696392]
[1747742304706,3.67537139,2514.8,2514.7,0.61396392]
[1747742304907,3.67537139,2514.8,2514.7,8.58296392]
[1747742305406,1.68710139,2514.8,2514.7,10.57123392]
[1747742305613,1.68710139,2514.8,2514.7,12.76453392]
[1747742305908,1.68710139,2514.8,2514.7,13.55955392]
[1747742306104,1.68710139,2514.8,2514.7,2.80726392]
[1747742306313,1.68710139,2514.8,2514.7,10.77626392]
[1747742306610,1.42869492,2514.8,2514.7,10.77626392]
[1747742307212,1.42869492,2514.8,2514.7,10.77631894]
[1747742307608,3.41696492,2514.8,2514.7,8.58301894]
[1747742308913,3.41696492,2514.8,2514.7,8.58306482]
[1747742309110,2.78326,2514.8,2514.7,9.86956713]
[1747742309312,1.98734,2515.0,2514.7,13.92583713]
[1747742309514,0.79496,2514.9,2514.8,2.37626769]
[1747742309814,0.79496,2514.9,2514.8,3.11586769]
[1747742310015,0.79496,2514.9,2514.8,5.10405769]
[1747742310914,0.79496,2514.9,2514.8,5.42212482]
[1747742311309,0.79494,2515.0,2514.9,0.79491]
[1747742311615,0.79494,2515.0,2514.9,2.38390769]
[1747742311803,0.79494,2515.0,2514.9,4.37201769]
[1747742312004,0.79494,2515.0,2514.9,5.18145064]
[1747742312408,0.79494,2515.0,2514.9,8.38913198]
[1747742312609,0.79491,2515.1,2515.0,0.79489]
[1747742312914,0.79491,2515.1,2515.0,10.35276903]
[1747742313115,0.79491,2515.1,2515.0,12.34079902]
[1747742314010,0.79491,2515.1,2515.0,12.04491999]
[1747742314919,0.79491,2515.1,2515.0,12.3406218]
[1747742315618,0.79491,2515.1,2515.0,12.04491999]
[1747742315816,0.79491,2515.1,2515.0,12.36298712]
[1747742316917,0.79488,2515.2,2515.1,0.79486]
[1747742317114,0.79488,2515.2,2515.1,2.91206]
[1747742317422,0.79488,2515.2,2515.1,5.70895519]
[1747742317921,1.78005134,2515.3,2515.2,0.79486]
[1747742318121,1.78005134,2515.3,2515.2,5.34646]
[1747742318321,1.78005134,2515.3,2515.2,8.076335]
[1747742318715,0.98520134,2515.3,2515.2,8.39440213]
[1747742320616,0.98520134,2515.3,2515.2,9.04864749]
[1747742321626,0.98520134,2515.3,2515.2,14.04864749]
[1747742321813,0.98520134,2515.8,2515.7,0.79471]
[1747742322120,1.77987134,2515.8,2515.7,11.97051]
[1747742322419,3.76735135,2515.8,2515.7,11.97051]
[1747742322620,3.76735135,2515.8,2515.7,13.30431]
[1747742322822,1.77987134,2515.8,2515.7,13.30431]
[1747742323721,1.77987134,2515.8,2515.7,13.94847568]
[1747742324124,1.77987134,2515.8,2515.7,15.93595568]
[1747742324620,0.79467,2515.8,2515.7,13.94847568]
[1747742324820,0.79467,2515.8,2515.7,5.18576568]
[1747742325015,2.78215001,2515.8,2515.7,11.81896568]
[1747742325214,2.78215001,2515.8,2515.7,3.85196568]
[1747742325215,0.79467,2515.8,2515.7,3.85196568]
[1747742325421,2.78215001,2515.8,2515.7,8.5294272]
[1747742326423,2.78215001,2515.8,2515.7,8.28506713]
[1747742327736,2.78215001,2515.8,2515.7,0.31806713]
[1747742327936,2.78215001,2515.8,2515.7,8.28506713]
[1747742328131,7.78215001,2515.8,2515.7,0.31806713]
[1747742328333,7.78215001,2515.8,2515.7,7.13e-06]
[1747742329337,6.98748001,2515.8,2515.5,0.00596967]
[1747742329636,6.0986,2515.7,2515.5,0.00596967]
[1747742329936,2.18714,2515.6,2515.5,0.00596967]
[1747742330330,4.174775,2515.6,2515.5,0.00596967]
[1747742336935,2.18714,2515.6,2515.5,0.80073967]
[1747742337331,4.174775,2515.6,2515.5,2.11483967]
[1747742337541,4.174775,2515.6,2515.5,1.56442974]
[1747742338240,4.174775,2515.6,2515.5,2.35919974]
[1747742338641,4.174775,2515.6,2515.5,1.56442974]
[1747742338839,4.174775,2515.6,2515.5,0.25032974]
[1747742339440,2.18714,2515.6,2515.5,8.20432974]
[1747742339940,4.174775,2515.6,2515.5,8.20432974]
[1747742341045,4.174775,2515.6,2515.5,8.99909974]
[1747742341245,4.174775,2515.6,2515.5,8.20432974]
[1747742341741,4.174775,2515.6,2515.5,0.25032974]
[1747742341946,4.174775,2515.6,2515.5,8.20432974]
[1747742342344,4.174775,2515.6,2515.5,8.20332974]
[1747742345847,4.174775,2515.6,2515.5,0.25032974]
[1747742347348,0.79477,2515.5,2515.4,1e-08]
[1747742347552,5.35897,2515.5,2515.4,1e-08]
[1747742347752,7.34668501,2515.5,2515.4,1e-08]
[1747742348252,7.34668501,2515.5,2515.4,0.74940001]
[1747742348457,7.34668501,2515.5,2515.4,1.47140001]
[1747742349247,7.34668501,2515.5,2515.4,1e-08]
[1747742349449,7.34668501,2515.5,2515.4,7.95400001]
[1747742351455,7.34668501,2515.5,2515.4,1e-08]
[1747742351845,7.34668501,2515.5,2515.4,7.95400001]
[1747742353559,7.34668501,2515.5,2515.4,7.954]
[1747742353951,5.99028501,2515.5,2515.4,7.954]
[1747742354357,5.99028501,2515.5,2515.4,9.3366]
[1747742355356,5.99028501,2515.5,2515.4,1.3826]
[1747742355557,6.73698501,2515.5,2515.4,9.3366]
[1747742356652,6.73698501,2515.5,2515.4,1.3826]
[1747742356858,0.7948,2515.4,2515.3,7.954]
[1747742357058,2.0578,2515.4,2515.3,9.2971]
[1747742357259,4.045595,2515.4,2515.3,9.2971]
[1747742358259,0.79483,2515.3,2515.2,49.50236967]
[1747742358458,2.05783,2515.3,2515.2,1.47736967]
[1747742358654,4.045705,2515.3,2515.2,1.47736967]
[1747742358861,4.045705,2515.3,2515.2,7.95996967]
[1747742359560,4.045705,2515.3,2515.2,2.01186967]
[1747742360861,4.045705,2515.3,2515.2,0.69386967]
[1747742361062,4.045705,2515.3,2515.2,0.00596967]
[1747742362861,4.045705,2515.3,2515.0,1.318]
[1747742362862,0.7949,2515.1,2515.0,1.318]
[1747742363363,2.78293,2515.1,2515.0,1.318]
[1747742364266,2.78293,2515.1,2515.0,2.11293]
[1747742364567,2.78293,2515.1,2515.0,1.318]
[1747742366668,2.78293,2515.1,2515.0,9.259]
[1747742366967,4.04373,2515.1,2515.0,9.259]
[1747742371564,4.04373,2515.1,2515.0,1.318]
[1747742372871,0.79496,2514.9,2514.8,0.00596967]
[1747742373066,0.79496,2514.9,2514.8,1.33306967]
[1747742373365,2.78315001,2514.9,2514.8,1.33306967]
[1747742376368,5.99095001,2514.9,2514.8,1.33306967]
[1747742377474,5.99095001,2514.9,2514.8,9.27406967]
[1747742380971,5.99095001,2514.9,2514.8,9.97546967]
[1747742381879,5.99095001,2514.9,2514.8,10.27015039]
[1747742382579,2.78315001,2514.9,2514.8,10.27015039]
[1747742383373,2.78315001,2514.9,2514.8,10.27014206]
[1747742384884,2.78315001,2514.9,2514.8,11.06513206]
[1747742385183,2.78315001,2514.9,2514.8,11.06511272]
[1747742385385,2.78315001,2514.9,2514.8,10.27012272]
[1747742385686,2.78315001,2514.9,2514.8,10.58816642]
[1747742386684,2.78315001,2514.9,2514.8,10.58831858]
[1747742387986,0.79496,2514.9,2514.8,10.29351337]
[1747742388890,0.79496,2514.9,2514.8,10.58831459]
[1747742389890,2.78315001,2514.9,2514.8,10.58831459]
[1747742390488,2.78315001,2514.9,2514.8,10.58833127]
[1747742391988,2.78315001,2514.9,2514.8,2.64733127]
[1747742392181,2.78315001,2514.9,2514.8,10.57433127]
[1747742392383,2.78315001,2514.9,2514.8,2.64733127]
[1747742392589,2.78315001,2514.9,2514.8,10.57433127]
[1747742393186,2.78315001,2514.9,2514.8,0.61883127]
[1747742393389,2.78315001,2514.9,2514.8,0.94460923]
[1747742393886,4.11785001,2514.9,2514.8,0.94441135]
[1747742394091,4.11785001,2514.9,2514.8,1.31049133]
[1747742394289,4.11785001,2514.9,2514.8,2.60079133]
[1747742394894,4.11785001,2514.9,2514.8,2.89541874]
[1747742395690,4.11785001,2514.9,2514.8,2.56964078]
[1747742395993,4.11785001,2514.9,2514.8,2.56952802]
[1747742399001,4.11785001,2514.9,2514.8,2.25148432]
[1747742400090,4.11785001,2514.9,2514.8,1.95696967]
[1747742400398,0.79508,2514.5,2514.4,0.32577796]
[1747742400590,0.79508,2514.5,2514.4,10.87047796]
[1747742400790,0.79508,2514.5,2514.4,12.85898296]
[1747742400989,0.79508,2514.5,2514.4,13.15336015]
[1747742402193,0.79508,2514.5,2514.4,13.1456908]
[1747742402694,2.783585,2514.5,2514.4,11.1571858]
[1747742403192,0.79508,2514.5,2514.4,13.9407207]
[1747742403791,0.99556175,2514.6,2514.4,13.9407207]
[1747742403792,0.99556175,2514.6,2514.5,0.79508]
[1747742403986,0.99556175,2514.6,2514.5,2.38086709]
[1747742404187,1.79061175,2514.6,2514.5,3.57421209]
[1747742404393,3.77903675,2514.6,2514.5,0.29428709]
[1747742404690,0.79512,2514.4,2514.3,0.48878519]
[1747742404886,0.79521,2514.1,2514.0,0.65122141]
[1747742405086,3.53521,2514.1,2514.0,0.65122141]
[1747742405485,3.53521,2514.1,2514.0,2.6400464]
[1747742405889,3.53521,2514.1,2514.0,3.34302499]
[1747742406291,0.79521,2514.1,2514.0,6.08302499]
[1747742407199,0.79521,2514.1,2514.0,3.34302499]
[1747742409099,0.79521,2514.1,2514.0,3.58682932]
[1747742409595,0.7952,2514.2,2514.0,4.38205932]
[1747742409801,0.7952,2514.2,2514.1,2.0883]
[1747742413897,0.7952,2514.2,2514.1,2.96837477]
[1747742414201,0.7952,2514.2,2514.1,2.17316477]
[1747742414402,0.00596967,2514.3,2514.2,0.79518]
[1747742414705,0.80111967,2514.3,2514.2,10.72688]
[1747742414905,0.80111967,2514.3,2514.2,12.715545]
[1747742415108,0.80111967,2514.3,2514.2,11.920365]
[1747742415306,0.80111967,2514.3,2514.2,9.917665]
[1747742415708,0.80111967,2514.3,2514.2,11.258465]
[1747742415908,0.80111967,2514.3,2514.2,3.329465]
[1747742416102,2.06971967,2514.3,2514.2,9.2698]
[1747742416302,4.05838467,2514.3,2514.2,9.2698]
[1747742416712,4.05838467,2514.3,2514.2,9.55477932]
[1747742417011,2.06971967,2514.3,2514.2,9.55477932]
[1747742417210,2.06971967,2514.3,2514.2,8.2139851]
[1747742417411,4.05838467,2514.3,2514.2,8.2139851]
[1747742417998,4.05838467,2514.3,2514.2,8.53213036]
[1747742418908,4.05838467,2514.3,2514.2,8.53216586]
[1747742420606,4.05838467,2514.3,2514.2,8.53222309]
[1747742422220,4.05838467,2514.3,2514.2,8.53234661]
[1747742423216,0.00596967,2514.3,2514.2,12.57139161]
[1747742423519,1.32933404,2514.7,2514.6,0.79505]
[1747742423819,2.12435404,2514.7,2514.6,8.99449357]
[1747742424119,2.12435404,2514.7,2514.6,10.98284357]
[1747742424313,2.12435404,2514.7,2514.6,12.96664357]
[1747742424514,2.12435404,2514.7,2514.6,13.28478883]
[1747742424919,0.79502,2514.7,2514.6,13.28478883]
[1747742425225,0.79502,2514.7,2514.6,12.48973883]
[1747742426424,0.79502,2514.7,2514.6,12.73283382]
[1747742427422,0.795,2514.8,2514.7,0.79499]
[1747742427624,0.00596967,2514.9,2514.8,0.79499]
[1747742427821,0.00596967,2514.9,2514.8,1.0793062]
[1747742428014,0.00596967,2514.9,2514.8,4.3323962]
[1747742428216,0.00596967,2514.9,2514.8,4.65054146]
[1747742428516,0.80092967,2514.9,2514.8,3.85555146]
[1747742428822,0.80092967,2514.9,2514.8,11.76955146]
[1747742429023,0.80092967,2514.9,2514.8,11.76929225]
[1747742429925,0.00596967,2514.9,2514.8,12.56428225]
[1747742430421,3.2078,2515.4,2515.2,0.79483]
[1747742430623,0.79479,2515.5,2515.4,0.79477]
[1747742430816,0.79479,2515.5,2515.4,2.40932699]
[1747742431011,0.79479,2515.5,2515.4,4.39704199]
[1747742431417,0.79479,2515.5,2515.4,3.60227199]
[1747742431828,2.18449,2515.5,2515.4,3.60227199]
[1747742432120,4.17220501,2515.5,2515.4,0.28405699]
[1747742432323,8.03740501,2515.5,2515.4,8.19649737]
[1747742432921,2.78250501,2515.5,2515.4,9.55969737]
[1747742433221,4.16300501,2515.5,2515.4,9.55969737]
[1747742433621,0.79483,2515.3,2515.2,7.91896967]
[1747742433819,0.79483,2515.3,2515.2,8.20233698]
[1747742434124,5.522705,2515.3,2515.2,8.20235559]
[1747742434726,5.522705,2515.3,2515.2,8.20232585]
[1747742435924,10.522705,2515.3,2515.2,9.67e-06]
[1747742438223,0.79508,2514.5,2514.4,0.2428273]
[1747742438419,0.79508,2514.5,2514.4,0.52642577]
[1747742438628,0.79515,2514.3,2514.2,0.3233369]
[1747742438827,4.31943338,2514.3,2514.2,0.3233369]
[1747742439028,6.30809838,2514.3,2514.2,0.3233369]
[1747742439225,15.31419838,2514.3,2514.2,0.3233369]
[1747742439625,15.31419838,2514.3,2514.0,0.00596967]
[1747742439626,16.50693838,2514.3,2514.0,0.00596967]
[1747742439923,11.50693838,2514.3,2514.0,0.00596967]
[1747742440124,0.79521,2514.1,2514.0,0.00596967]
[1747742440626,2.784035,2514.1,2514.0,0.00596967]
[1747742441228,5.524035,2514.1,2514.0,9.67e-06]
[1747742443131,2.784035,2514.1,2514.0,9.67e-06]
[1747742443932,0.79521,2514.1,2514.0,9.67e-06]
[1747742444732,0.79521,2514.1,2514.0,1.37330967]
[1747742445132,2.784035,2514.1,2514.0,9.67e-06]
[1747742451135,5.524035,2514.1,2514.0,9.67e-06]
[1747742451726,3.53521,2514.1,2514.0,9.67e-06]
[1747742452030,5.524035,2514.1,2514.0,9.67e-06]
[1747742453038,6.797335,2514.1,2514.0,9.67e-06]
[1747742455735,7.442635,2514.1,2514.0,9.67e-06]
[1747742458135,11.647425,2514.1,2513.5,1.322]
[1747742458335,0.79562,2512.8,2512.7,0.3233369]
[1747742458543,0.79562,2512.8,2512.7,0.60877423]
[1747742458742,0.79562,2512.8,2512.7,2.59862423]
[1747742459040,0.79562,2512.8,2512.7,10.50462423]
[1747742459242,3.53562,2512.8,2512.7,10.50462423]
[1747742459441,3.53562,2512.8,2512.7,2.59857009]
[1747742459642,3.53562,2512.8,2512.7,10.50457009]
[1747742460135,3.53562,2512.8,2512.7,10.18123319]
[1747742460341,3.53562,2512.8,2512.7,7.906]
[1747742460342,6.74342,2512.8,2512.7,7.906]
[1747742461245,0.79565,2512.7,2512.6,0.6428]
[1747742461436,0.79565,2512.7,2512.6,0.92865151]
[1747742461739,0.79565,2512.7,2512.6,2.91858151]
[1747742462237,3.53565,2512.7,2512.6,2.91858151]
[1747742462545,3.53565,2512.7,2512.6,2.9187268]
[1747742462841,3.53565,2512.7,2512.6,4.9821168]
[1747742463042,3.53565,2512.7,2512.6,4.1864268]
[1747742463241,0.79565,2512.7,2512.6,4.1864268]
[1747742463631,0.79565,2512.7,2512.6,12.0934268]
[1747742463943,0.79565,2512.7,2512.6,11.80743]
[1747742464540,0.79565,2512.7,2512.6,12.09359345]
[1747742465144,3.53565,2512.7,2512.6,12.09359345]
[1747742465643,3.53565,2512.7,2512.6,11.80743]
[1747742465833,3.53565,2512.7,2512.6,12.09367675]
[1747742466238,0.79565,2512.7,2512.6,12.09367675]
[1747742469450,0.79565,2512.7,2512.6,2.51507777]
[1747742470149,3.53565,2512.7,2512.6,2.51507777]
[1747742471150,3.53565,2512.7,2512.6,2.19674675]
[1747742472454,3.53565,2512.7,2512.6,2.19717302]
[1747742473149,4.87675,2512.7,2512.6,2.19717302]
[1747742473350,6.86668,2512.7,2512.6,2.19717302]
[1747742473550,4.87675,2512.7,2512.6,2.19717302]
[1747742473951,6.86668,2512.7,2512.6,2.19717302]
[1747742475951,6.86668,2512.7,2512.6,2.1973985]
[1747742476347,3.53565,2512.7,2512.6,4.1873285]
[1747742477152,0.79565,2512.7,2512.6,4.1873285]
[1747742477656,0.79565,2512.7,2512.6,4.18733518]
[1747742478045,0.79565,2512.7,2512.6,4.50568289]
[1747742478351,3.53565,2512.7,2512.6,4.50568289]
[1747742479248,2.78558,2512.7,2512.6,1.24819746]
[1747742479555,5.99338,2512.7,2512.6,1.24819746]
[1747742480354,8.73338,2512.7,2512.6,1.24819746]
[1747742481054,8.73338,2512.7,2512.6,1.24845305]
[1747742481353,5.99338,2512.7,2512.6,1.24845305]
[1747742482155,8.73338,2512.7,2512.6,1.24845305]
[1747742482655,8.73338,2512.7,2512.6,1.24844356]
[1747742483257,5.99338,2512.7,2512.6,1.24844356]
[1747742483852,4.00345,2512.7,2512.6,3.23837356]
[1747742484251,4.00345,2512.7,2512.6,4.56447356]
[1747742484451,4.00345,2512.7,2512.6,4.56457365]
[1747742484650,3.2078,2512.7,2512.6,5.36026365]
[1747742484952,0.79562,2512.8,2512.7,0.79565]
[1747742485152,0.79562,2512.8,2512.7,2.40914594]
[1747742485353,0.00596967,2513.0,2512.9,0.79559]
[1747742485560,0.79541,2513.5,2513.2,0.7955]
[1747742485752,6.82442294,2513.8,2513.2,6.28015094]
[1747742486052,0.79545,2513.4,2513.2,11.28014576]
[1747742486760,0.79545,2513.4,2513.3,0.79546]
[1747742487054,0.79545,2513.4,2513.3,10.30695076]
[1747742487360,0.00596967,2513.5,2513.4,0.79543]
[1747742487559,0.80138967,2513.5,2513.4,2.41022076]
[1747742487862,0.00596967,2513.5,2513.4,4.39943701]
[1747742488561,0.80136967,2513.5,2513.4,4.39943701]
[1747742488755,0.80136967,2513.5,2513.4,5.04033701]
[1747742489157,0.80136967,2513.5,2513.4,5.68417896]
[1747742489355,0.00596967,2513.5,2513.4,5.39687195]
[1747742489659,0.00596967,2513.5,2513.4,5.68379861]
[1747742490361,0.80136967,2513.5,2513.4,5.68379861]
[1747742490560,0.80136967,2513.5,2513.4,4.88836861]
[1747742491054,0.80136967,2513.5,2513.4,4.60144195]
[1747742491255,0.80136967,2513.5,2513.4,4.88836744]
[1747742491454,0.80136967,2513.5,2513.4,12.78536744]
[1747742492158,3.54136967,2513.5,2513.4,4.5628732]
[1747742492359,3.54136967,2513.5,2513.4,10.4695732]
[1747742492770,3.54136967,2513.5,2513.4,10.46952885]
[1747742493162,0.80136967,2513.5,2513.4,12.45882885]
[1747742493363,0.80136967,2513.5,2513.4,13.25425885]
[1747742493554,0.80136967,2513.5,2513.4,12.45882885]
[1747742494457,0.80136967,2513.5,2513.4,12.17194771]
[1747742494657,0.80136967,2513.5,2513.4,12.45865273]
[1747742494966,0.80136967,2513.5,2513.4,12.45864899]
[1747742495561,0.80136967,2513.5,2513.4,11.13124899]
[1747742495761,2.79066967,2513.5,2513.4,8.50104899]
[1747742495961,2.79066967,2513.5,2513.4,0.60504899]
[1747742496161,5.53066967,2513.5,2513.4,0.60504899]
[1747742496361,6.85276967,2513.5,2513.4,0.60504899]
[1747742497170,6.85276967,2513.5,2513.4,0.28670128]
[1747742498670,0.79546,2513.3,2513.2,0.48808594]
[1747742498873,0.79546,2513.3,2513.2,0.77480105]
[1747742499170,3.53546,2513.3,2513.2,0.77480105]
[1747742499971,3.53546,2513.3,2513.2,0.77483753]
[1747742500772,4.87396,2513.3,2513.2,0.77483753]
[1747742501369,4.87396,2513.3,2513.2,0.77460152]
[1747742501669,6.863415,2513.3,2513.2,0.77460152]
[1747742502567,6.863415,2513.3,2513.2,0.48808594]
[1747742502773,6.863415,2513.3,2513.2,1.66e-06]
[1747742502974,0.7955,2513.2,2513.1,0.32519082]
[1747742503273,5.4785,2513.2,2513.1,0.32519082]
[1747742503477,7.468035,2513.2,2513.1,0.32519082]
[1747742503673,7.468035,2513.2,2513.1,8.2e-07]
[1747742503869,12.468035,2513.2,2513.1,8.2e-07]
[1747742504577,13.45988692,2513.2,2513.1,8.2e-07]
[1747742504773,1.98883,2513.1,2512.5,0.00596967]
[1747742504973,0.79584,2512.1,2511.9,2.6625]
[1747742505275,3.53584,2512.1,2512.0,2.52152485]
[1747742505579,3.53584,2512.1,2512.0,4.51192985]
[1747742506377,0.79584,2512.1,2512.0,4.83033591]
[1747742506676,2.13794,2512.1,2512.0,4.83033591]
[1747742507178,0.79588,2512.0,2511.9,1.2866]
[1747742507877,0.79588,2512.0,2511.9,3.277085]
[1747742508279,3.53588,2512.0,2511.9,3.277085]
[1747742508478,0.79591,2511.9,2511.8,0.00596967]
[1747742508682,2.13201,2511.9,2511.8,0.00596967]
[1747742508976,9.12257501,2511.9,2511.8,9.67e-06]
[1747742509183,15.70247501,2511.9,2511.8,9.67e-06]
[1747742510180,0.79613,2511.2,2511.1,0.6917]